{"text_format":"1","workbook":"xlsx","n_sheets":1,"sheets":["RIM-1W1P Scoresheet"],"not_rendered":{"charts":0,"images":2,"macros":1,"external_links":1,"defined_names":2,"comments":0,"pivot_tables":0},"unopened":[],"bounds":{"document_bytes":16777216,"sheet_cells":100000,"rows_first":2000,"rows_last":500,"rows_between":2000,"halvings":0,"cell_chars":16384,"cell_head_chars":4096},"cells_cut":0,"cells_raw":0,"read":"whole","date_system":"1900"}

{"sheet":"RIM-1W1P Scoresheet","index":0,"n_rows":138,"n_cols":40,"rows_kept":138,"cut":false,"hidden":false,"merged":[[125,14,125,15],[1,14,1,15],[149,9,149,11],[140,2,140,13],[141,2,141,13],[142,2,142,13],[144,1,144,14],[146,0,146,3],[146,12,146,14],[121,9,121,14],[124,9,124,12],[139,2,139,13],[127,0,127,15],[33,14,33,15],[74,5,74,11],[53,3,53,12],[136,1,136,14],[137,2,137,13],[138,2,138,13],[1,1,1,6],[2,1,2,15],[3,1,3,15],[4,4,4,14],[5,5,5,8],[5,9,5,13],[6,5,6,8],[6,9,6,13],[128,0,128,15],[129,1,129,10],[131,1,131,7],[132,1,133,13],[135,1,135,8],[7,2,9,14],[95,3,95,12],[103,3,103,12],[112,3,112,12],[80,8,80,9],[87,3,87,6],[80,3,80,6],[94,3,94,11],[17,1,17,11],[50,1,50,11],[13,3,13,11],[25,3,25,12],[19,3,19,11],[27,3,27,11],[14,2,14,11],[20,3,20,11],[34,3,34,11],[28,3,28,11],[32,3,32,12],[37,3,37,12],[40,3,40,12],[45,3,45,12],[46,3,46,12],[65,3,65,12],[39,14,39,15],[78,14,78,15],[61,3,62,11],[52,3,52,12],[58,7,58,9],[59,7,59,9],[75,5,75,11],[76,5,76,11],[67,3,67,11],[68,5,68,11],[69,5,69,11],[70,5,70,11],[71,5,71,11]]}
[]
[null,null,null,null,null,null,null,null,null,null,null,null,null,null,"Sheet 1 of 3"]
[null,"RIM 1W1P (Integrating Clean Water and Habitat)"]
[null," ENVIRONMENTAL BENEFITS SCORING SHEET"]
[]
[null,null,null,null,null,"Landowner Name:",null,null,null,"County/SWCD Office:"]
[]
[null,null,"These criteria are for RIM proposals associated with comprehensive watershed management plans (CWMPs) developed through BWSR’s One Watershed, One Plan Program (1W1P). The RIM offer MUST meet the following minimum criteria to be eligible:"]
[]
[]
[null,null,null,"*Offer meets minimum enrollment size (8-acres) or meets waiver requirements"]
[null,null,null,"*The project will protect, restore, or enhance habitat for fish, game, and other wildlife."]
[null,null,null,"*Offer is located in an area with an approved Comprehensive watershed management plan (CWMP)"]
[null,null,null,"*The project must do one or more of the following: 1) contribute to a measurable goal, 2) be located in a priority area, 3) and/or address an issue or implementation action in a CWMP"]
[null,null,"*A minimum scoring threshold may be set based on applications received in a given batching period",null,null,null,null,null,null,null,null,null,null,"Total Score  ",{"$f":"IF(OR(COUNTIF(INDIRECT({\"O20\",\"O28\",\"O35\",\"O41\",\"O46\",\"O53\",\"O58\",\"O62\",\"O68\",\"O74\",\"O80\",\"O95\",\"O103\",\"O112\"}),\"Error\")),\"Error\",SUM(O20,O28,O35,O41,O46,O53,O58,O62,O68,O74,O80,O95,O103,O112))","v":0}]
[null,null,null,"Choose only ONE answer per question below"]
[]
[null,"COMPREHENSIVE WATERSHED MANAGEMENT PLAN (1W1P) RELATED QUESTIONS"]
[]
[null,null,"1.","Does this project make progress towards measurable goals in the CWMP?",null,null,null,null,null,null,null,null,null,"Score",{"$f":"IF(W26>1,\"Error\",X26)","v":0}]
[null,null,null,"List the measurable goals this easement helps make progress towards. Include page numbers from the plan along with additional explanations below. ",null,null,null,null,null,null,null,null,null,null,null,null,null,null,null,null,null,null,null,"Score"]
[null,null,null,null,"a.","Makes progress towards multiple measurable goals including at least 1 habitat goal — 15 points",null,null,null,null,null,null,null,null,null,null,null,null,null,null,null,"a",null,{"$f":"IF(W22=TRUE,15,0)","v":0}]
[null,null,null,null,"b.","Makes progress towards at least 1 measurable HABITAT goal — 10 pts",null,null,null,null,null,null,null,null,null,null,null,null,null,null,null,"b",null,{"$f":"IF(W23=TRUE,10,0)","v":0}]
[null,null,null,null,"c.","Makes progress towards at least 1 measurable goal — 5 pts",null,null,null,null,null,null,null,null,null,null,null,null,null,null,null,"c",null,{"$f":"IF(W24=TRUE,5,0)","v":0}]
[null,null,null,null,"d.","Does not address measurable goals — 0 pts",null,null,null,null,null,null,null,null,null,null,null,null,null,null,null,"d",null,{"$f":"IF(W25=TRUE,0,0)","v":0}]
[null,null,null,null,null,null,null,null,null,null,null,null,null,null,null,null,null,null,null,null,null,"Count True",{"$f":"COUNTIF(W22:W25, TRUE)","v":0},{"$f":"SUM(X22:X25)","v":0},"Score Sum"]
[]
[null,null,"2.","Is the project in an area identified as a priority in the CWMP?",null,null,null,null,null,null,null,null,null,"Score",{"$f":"IF(W33>1,\"Error\",X33)","v":0}]
[null,null,null,"If the plan uses multiple priority levels or tiers, \"priority\" refers to the highest levels or tiers. Include page numbers and use supplemental maps as appropriate.",null,null,null,null,null,null,null,null,null,null,null,null,null,null,null,null,null,null,null,"Score"]
[null,null,null,null,"a.","In a priority area for HABITAT — 15 pts",null,null,null,null,null,null,null,null,null,null,null,null,null,null,null,"a",null,{"$f":"IF(W30=TRUE,15,0)","v":0}]
[null,null,null,null,"b.","In a priority area — 10 pts",null,null,null,null,null,null,null,null,null,null,null,null,null,null,null,"b",null,{"$f":"IF(W31=TRUE,10,0)","v":0}]
[null,null,null,null,"c.","Not in a priority area — 0 pts",null,null,null,null,null,null,null,null,null,null,null,null,null,null,null,"c",null,{"$f":"IF(W32=TRUE,0,0)","v":0}]
[null,null,null,null,null,null,null,null,null,null,null,null,null,null,null,null,null,null,null,null,null,"Count True",{"$f":"COUNTIF(W30:W32, TRUE)","v":0},{"$f":"SUM(X30:X32)","v":0},"Score Sum"]
[]
[null,null,"3.","Does this project address other issues, priorities, or plan implementation items not described in question 1 or 2? Describe, including page numbers.",null,null,null,null,null,null,null,null,null,"Score",{"$f":"IF(W38>1,\"Error\",X38)","v":0},null,null,null,null,null,null,null,null,"Score"]
[null,null,null,null,"a.","Yes — 5 pts",null,null,null,null,null,null,null,null,null,null,null,null,null,null,null,"a",null,{"$f":"IF(W36=TRUE,5,0)","v":0}]
[null,null,null,null,"b.","No — 0 pts",null,null,null,null,null,null,null,null,null,null,null,null,null,null,null,"b",null,{"$f":"IF(W37=TRUE,0,0)","v":0}]
[null,null,null,null,null,null,null,null,null,null,null,null,null,null,null,null,null,null,null,null,null,"Count True",{"$f":"COUNTIF(W36:W37, \"TRUE\")","v":0},{"$f":"SUM(X36:X37)","v":0},"Score Sum"]
[]
[null,null,null,null,null,null,null,null,null,null,null,null,null,null,"Sheet 2 of 3"]
[null,null,"4.","What type of water resource is the land adjacent to, or, what type of water resource does this easement drains to first when it leaves this property?\nProvide a map; pick the highest scoring option if multiple situations apply",null,null,null,null,null,null,null,null,null,"Score  ",{"$f":"IF(W45>1,\"Error\",X45)","v":0},null,null,null,null,null,null,null,"True/false","Score"]
[null,null,null,null,"a.","Public Watercourse or Public Water Basins — 10 pts",null,null,null,null,null,null,null,null,null,null,null,null,null,null,null,"a",null,{"$f":"IF(W42=TRUE,10,0)","v":0}]
[null,null,null,null,"b.","Wetland/intermittent stream/public ditch system/other seasonal waters — 5 pts",null,null,null,null,null,null,null,null,null,null,null,null,null,null,null,"b",null,{"$f":"IF(W43=TRUE,5,0)","v":0}]
[null,null,null,null,"c.","No water source protected — 0 pts",null,null,null,null,null,null,null,null,null,null,null,null,null,null,null,"c",null,{"$f":"IF(W44=TRUE,0,0)","v":0}]
[null,null,null,null,null,null,null,null,null,null,null,null,null,null,null,null,null,null,null,null,null,"Count True",{"$f":"COUNTIF(W42:W44,\"TRUE\")","v":0},{"$f":"SUM(X42:X43)","v":0},"Score Sum"]
[null,null,"5.","Have Clean Water Funds (CWF) or other water quality related funding been spent in this same HUC-10 level sub-watershed?",null,null,null,null,null,null,null,null,null,"Score  ",{"$f":"IF(W50>1,\"Error\",X50)","v":0}]
[null,null,null,"Example: CWF, 5 grassed waterways in this HUC-10 watershed). NOTE: WBIF funds are CWF",null,null,null,null,null,null,null,null,null,null,null,null,null,null,null,null,null,null,null,"Score"]
[null,null,null,null,"a.","Yes — 10 pts",null,null,null,null,null,null,null,null,null,null,null,null,null,null,null,"a",null,{"$f":"IF(W48=TRUE,10,0)","v":0}]
[null,null,null,null,"b.","No — 0 pts",null,null,null,null,null,null,null,null,null,null,null,null,null,null,null,"b",null,{"$f":"IF(W49=TRUE,0,0)","v":0}]
[null,null,null,null,null,null,null,null,null,null,null,null,null,null,null,null,null,null,null,null,null,"Count True",{"$f":"COUNTIF(W48:W49,\"TRUE\")","v":0},{"$f":"SUM(X48:X49)","v":0},"Score Sum"]
[null,"WILDLIFE HABITAT REALTED QUESTIONS"]
[]
[null,null,"6.","Is the project predominantly a restoration easement, or a protection easement?",null,null,null,null,null,null,null,null,null,"Score  ",{"$f":"IF(W57>1,\"Error\",X57)","v":0}]
[null,null,null,"Restoration Easement = Land WITH Crop History is greater than, or equal to, 60% of the easement offer Protection Easement = Land WITHOUT crop history is greater than 40% of the easement offer",null,null,null,null,null,null,null,null,null,null,null,null,null,null,null,null,null,null,null,"Score"]
[null,null,null,null,"a.","Restoration Easement — 10 pts",null,null,null,null,null,null,null,null,null,null,null,null,null,null,null,"a",null,{"$f":"IF(W55=TRUE,10,0)","v":0}]
[null,null,null,null,"b.","Protection Easement — 5 pts",null,null,null,null,null,null,null,null,null,null,null,null,null,null,null,"b",null,{"$f":"IF(W56=TRUE,5,0)","v":0}]
[null,null,null,null,null,null,null,null,null,null,null,null,null,null,null,null,null,null,null,null,null,"Count True",{"$f":"COUNTIF(W55:W56,\"TRUE\")","v":0},{"$f":"SUM(X55:X56)","v":0},"Score Sum"]
[null,null,"7.","Is the land currently in CRP?",null,null,null,null,null,null,null,null,null,"Score  ",{"$f":"IF(W61>1,\"Error\",X61)","v":0},null,null,null,null,null,null,null,null,"Score"]
[null,null,null,null,"a.","Yes — 5 pts",null,"CRP Contract Expiration:\n",null,null,null,null,null,null,null,null,null,null,null,null,null,"a",null,{"$f":"IF(W59=TRUE,5,0)","v":0}]
[null,null,null,null,"b.","No — 0 pts",null,"CRP Contract Practice:",null,null,null,null,null,null,null,null,null,null,null,null,null,"b",null,{"$f":"IF(W60=TRUE,0,0)","v":0}]
[null,null,null,null,null,null,null,null,null,null,null,null,null,null,null,null,null,null,null,null,null,"Count True",{"$f":"COUNTIF(W59:W60,\"TRUE\")","v":0},{"$f":"SUM(X59:X60)","v":0},"Score Sum"]
[null,null,"8.","Is this land at high risk for development/other land conversion? Use your best professional judgement to explain why AND provide applicable details",null,null,null,null,null,null,null,null,null,"Score  ",{"$f":"IF(W66>1,\"Error\",X66)","v":0}]
[null,null,null,null,null,null,null,null,null,null,null,null,null,null,null,null,null,null,null,null,null,null,null,"Score"]
[null,null,null,null,"a.","Yes — 5 pts",null,null,null,null,null,null,null,null,null,null,null,null,null,null,null,"a",null,{"$f":"IF(W64=TRUE,5,0)","v":0}]
[null,null,null,null,"b.","No — 0 pts",null,null,null,null,null,null,null,null,null,null,null,null,null,null,null,"b",null,{"$f":"IF(W65=TRUE,0,0)","v":0}]
[null,null,null,null,null,null,null,null,null,null,null,null,null,null,null,null,null,null,null,null,null,"Count True",{"$f":"COUNTIF(W64:W65,\"TRUE\")","v":0},{"$f":"SUM(X64:X65)","v":0},"Score Sum"]
[]
[null,null,"9.","Proximity to existing permanently protected habitat complex",null,null,null,null,null,null,null,null,null,"Score  ",{"$f":"IF(W73>1,\"Error\",X73)","v":0},null,null,null,null,null,null,null,"True/false","Score"]
[null,null,null,null,"a.","Immediately Adjacent — 15 pts",null,null,null,null,null,null,null,null,null,null,null,null,null,null,null,"a",null,{"$f":"IF(W69=TRUE,15,0)","v":0},null,null,{"$f":"AA117","v":0}]
[null,null,null,null,"b.","Within 1 mile — 10 pts",null,null,null,null,null,null,null,null,null,null,null,null,null,null,null,"b",null,{"$f":"IF(W70=TRUE,10,0)","v":0}]
[null,null,null,null,"c.","Within 2 miles — 5 pts",null,null,null,null,null,null,null,null,null,null,null,null,null,null,null,"c",null,{"$f":"IF(W71=TRUE,5,0)","v":0}]
[null,null,null,null,"d.","None of the above — 0 pts",null,null,null,null,null,null,null,null,null,null,null,null,null,null,null,"d",null,{"$f":"IF(W72=TRUE,0,0)","v":0}]
[null,null,null,null,null,null,null,null,null,null,null,null,null,null,null,null,null,null,null,null,null,"Count True",{"$f":"COUNTIF(W69:W72, TRUE)","v":0},{"$f":"SUM(X69:X72)","v":0},"Score Sum"]
[null,null,"10.","Proximity to public land that is open for public hunting",null,null,null,null,null,null,null,null,null,"Score  ",{"$f":"IF(W78>1,\"Error\",X78)","v":0},null,null,null,null,null,null,null,null,"Score"]
[null,null,null,null,"a.","Immediately adjacent — 5 pts",null,null,null,null,null,null,null,null,null,null,null,null,null,null,null,"a",null,{"$f":"IF(W75=TRUE,5,0)","v":0}]
[null,null,null,null,"b.","Within 2 miles — 3 pts",null,null,null,null,null,null,null,null,null,null,null,null,null,null,null,"b",null,{"$f":"IF(W76=TRUE,3,0)","v":0}]
[null,null,null,null,"c.","None of the above — 0 pts",null,null,null,null,null,null,null,null,null,null,null,null,null,null,null,"c",null,{"$f":"IF(W77=TRUE,0,0)","v":0}]
[null,null,null,null,null,null,null,null,null,null,null,null,null,null,null,null,null,null,null,null,null,"Count True",{"$f":"COUNTIF(W75:W77,\"TRUE\")","v":0},{"$f":"SUM(X75:X77)","v":0},"Score Sum"]
[null,null,null,null,null,null,null,null,null,null,null,null,null,null,"Sheet 3 of 3"]
[null,null,"11.","Easement Size (Restoration OR Protection Easement)",null,null,null,null,null,null,null,null,null,"Score  ",{"$f":"IF(W94>1,\"Error\",X94)","v":0}]
[null,null,null,"Protection Easement:"]
[null,null,null,null,"a.","100 acres or larger — 20 pts",null,null,null,null,null,null,null,null,null,null,null,null,null,null,null,"a",null,{"$f":"IF(W82=TRUE,20,0)","v":0}]
[null,null,null,null,"b.","80-99 acres — 15 pts",null,null,null,null,null,null,null,null,null,null,null,null,null,null,null,"b",null,{"$f":"IF(W83=TRUE,15,0)","v":0}]
[null,null,null,null,"c.","60-79 acres — 10 pts",null,null,null,null,null,null,null,null,null,null,null,null,null,null,null,"c",null,{"$f":"IF(W84=TRUE,10,0)","v":0}]
[null,null,null,null,"d.","40-59 acres — 5 pts",null,null,null,null,null,null,null,null,null,null,null,null,null,null,null,"d",null,{"$f":"IF(W85=TRUE,5,0)","v":0}]
[null,null,null,null,"e.","Less than 39 acres — 0 pts",null,null,null,null,null,null,null,null,null,null,null,null,null,null,null,"e",null,{"$f":"IF(W86=TRUE,0,0)","v":0}]
[]
[null,null,null,"Restoration Easement: "]
[null,null,null,null,"a.","80 acres or larger — 20 pts",null,null,null,null,null,null,null,null,null,null,null,null,null,null,null,"a",null,{"$f":"IF(W89=TRUE,20,0)","v":0}]
[null,null,null,null,"b.","60-79 acres — 15 pts",null,null,null,null,null,null,null,null,null,null,null,null,null,null,null,"b",null,{"$f":"IF(W90=TRUE,15,0)","v":0}]
[null,null,null,null,"c.","40-59 acres — 10 pts",null,null,null,null,null,null,null,null,null,null,null,null,null,null,null,"c",null,{"$f":"IF(W91=TRUE,10,0)","v":0}]
[null,null,null,null,"d.","20-39 acres — 5 pts",null,null,null,null,null,null,null,null,null,null,null,null,null,null,null,"d",null,{"$f":"IF(W92=TRUE,5,0)","v":0}]
[null,null,null,null,"e.","Less than 20 acres — 0 pts",null,null,null,null,null,null,null,null,null,null,null,null,null,null,null,"e",null,{"$f":"IF(W93=TRUE,0,0)","v":0}]
[null,null,null,null,null,null,null,null,null,null,null,null,null,null,null,null,null,null,null,null,null,"Count True",{"$f":"COUNTIF(W82:W92,\"TRUE\")","v":0},{"$f":"SUM(X82:X92)","v":0},"Score Sum"]
[null,null,"12.","Additional Wildlife Benefits Score",null,null,null,null,null,null,null,null,null,"Score  ",{"$f":"IF(W102>1,\"Error\",X102)","v":0}]
[null,null,null,"GIS Layer available at https://bwsr.state.mn.us/RIM-1W1P > Geospatial Resources > Additional Wildlife Benefits (Zip File)",null,null,null,null,null,null,null,null,null,null,null,null,null,null,null,null,null,null,"True/false","Score"]
[null,null,null,null,"a.","Red — 8 pts",null,null,null,null,null,null,null,null,null,null,null,null,null,null,null,"a",null,{"$f":"IF(W97=TRUE,8,0)","v":0}]
[null,null,null,null,"b.","Yellow — 6 pts",null,null,null,null,null,null,null,null,null,null,null,null,null,null,null,"b",null,{"$f":"IF(W98=TRUE,6,0)","v":0}]
[null,null,null,null,"c.","Green — 4 pts",null,null,null,null,null,null,null,null,null,null,null,null,null,null,null,"c",null,{"$f":"IF(W99=TRUE,4,0)","v":0}]
[null,null,null,null,"d.","Blue — 2 pts",null,null,null,null,null,null,null,null,null,null,null,null,null,null,null,"d",null,{"$f":"IF(W100=TRUE,2,0)","v":0}]
[null,null,null,null,"e.","Gray — 0 pts",null,null,null,null,null,null,null,null,null,null,null,null,null,null,null,"e",null,{"$f":"IF(W101=TRUE,0,0)","v":0}]
[null,null,null,null,null,null,null,null,null,null,null,null,null,null,null,null,null,null,null,null,null,"Count True",{"$f":"COUNTIF(W97:W101,\"TRUE\")","v":0},{"$f":"SUM(X97:X101)","v":0},"Score Sum"]
[null,null,"13.","Wildlife Action Network (WAN) Score",null,null,null,null,null,null,null,null,null,"Score  ",{"$f":"IF(W111>1,\"Error\",X111)","v":0}]
[null,null,null,"GIS Layer available at https://gisdata.mn.gov/dataset/env-mnwap-wildlife-action-netwrk",null,null,null,null,null,null,null,null,null,null,null,null,null,null,null,null,null,null,"True/false","Score"]
[null,null,null,null,"a.","High — 10 pts",null,null,null,null,null,null,null,null,null,null,null,null,null,null,null,"a",null,{"$f":"IF(W105=TRUE,10,0)","v":0}]
[null,null,null,null,"b.","Medium-High — 8 pts",null,null,null,null,null,null,null,null,null,null,null,null,null,null,null,"b",null,{"$f":"IF(W106=TRUE,8,0)","v":0}]
[null,null,null,null,"c.","Medium — 6 pts",null,null,null,null,null,null,null,null,null,null,null,null,null,null,null,"c",null,{"$f":"IF(W107=TRUE,6,0)","v":0}]
[null,null,null,null,"d.","Low-Medium — 4 pts",null,null,null,null,null,null,null,null,null,null,null,null,null,null,null,"d",null,{"$f":"IF(W108=TRUE,4,0)","v":0}]
[null,null,null,null,"e.","Low — 2 pts",null,null,null,null,null,null,null,null,null,null,null,null,null,null,null,"e",null,{"$f":"IF(W109=TRUE,2,0)","v":0}]
[null,null,null,null,"f.","Not Applicable — 0 pts",null,null,null,null,null,null,null,null,null,null,null,null,null,null,null,"f",null,{"$f":"IF(W110=TRUE,0,0)","v":0}]
[null,null,null,null,null,null,null,null,null,null,null,null,null,null,null,null,null,null,null,null,null,"Count True",{"$f":"COUNTIF(W105:W110,\"TRUE\")","v":0},{"$f":"SUM(X105:X110)","v":0},"Score Sum"]
[null,null,"14.","Riparian, Adjacency, Quality (RAQ) Score ",null,null,null,null,null,null,null,null,null,"Score  ",{"$f":"IF(W121>1,\"Error\",X121)","v":0}]
[null,null,null,"If applicable. Only to be counted towards total score for protection easements.",null,null,null,null,null,null,null,null,null,null,null,null,null,null,null,null,null,null,"True/false","Score"]
[null,null,null,null,"a.","9-10 — 10 pts",null,null,null,null,null,null,null,null,null,null,null,null,null,null,null,"a",null,{"$f":"IF(W114=TRUE,10,0)","v":0}]
[null,null,null,null,"b.","7-8 — 8 pts",null,null,null,null,null,null,null,null,null,null,null,null,null,null,null,"b",null,{"$f":"IF(W115=TRUE,8,0)","v":0}]
[null,null,null,null,"c.","5-6 — 6 pts",null,null,null,null,null,null,null,null,null,null,null,null,null,null,null,"c",null,{"$f":"IF(W116=TRUE,6,0)","v":0}]
[null,null,null,null,"d.","3-4 — 4 pts",null,null,null,null,null,null,null,null,null,null,null,null,null,null,null,"d",null,{"$f":"IF(W117=TRUE,4,0)","v":0}]
[null,null,null,null,"e.","1-2 — 2 pts",null,null,null,null,null,null,null,null,null,null,null,null,null,null,null,"e",null,{"$f":"IF(W118=TRUE,2,0)","v":0}]
[null,null,null,null,"f.","None of the above — 0 pts",null,null,null,null,null,null,null,null,null,null,null,null,null,null,null,"f",null,{"$f":"IF(W119=TRUE,0,0)","v":0}]
[null,null,null,null,"g.","NOT APPLICABLE (Restoration Easements)",null,null,null,null,null,null,null,null,null,null,null,null,null,null,null,"g",null,{"$f":"IF(W120=TRUE,0,0)","v":0}]
[null,null,null,null,null,null,null,null,null,null,null,null,null,null,null,null,null,null,null,null,null,"Count True",{"$f":"COUNTIF(W114:W120,\"TRUE\")","v":0},{"$f":"SUM(X114:X120)","v":0},"Score Sum"]
[null,null,null,null,null,null,null,null,null,"BWSR Use Only"]
[]
[]
[null,null,null,null,null,null,null,null,null,"Program Manager Approval",null,null,null,null,"Score"]
[null,null,null,null,null,null,null,null,null,null,null,null,null,null,"2024-09-16"]
[]
[]
[]
[]
[]
[]
[]
[]
[]
[]
[]
[null,null,null,null,null,null,null,null,null,null,null,null,null,null,null,null,null,null,null,null,null,null,null,null,null,null,null,null,null,null,null,null,null,null,null,{"$f":"AF137","v":0},null,{"$f":"AH137","v":0},{"$f":"SUM(X138:AL138)","v":0},{"$f":"IF(AM138>10,10,AM138)","v":0}]